bitfinex-derivatives/quotes_SOLF0:USTF0_20241120
["timestamp","ask_amount","ask_price","bid_price","bid_amount"]
[1732119272744,3.38,236.58,236.39,3.38]
[1732119272943,2.7230511,236.57,236.39,3.38]
[1732119273238,2.1116,236.51,236.39,3.38]
[1732119273542,2.72316596,236.5,236.39,3.38]
[1732119273742,4.83496596,236.49,236.39,5.4926]
[1732119274043,2.5524,236.5,236.39,3.38]
[1732119274241,2.72317241,236.48,236.36,16.46536615]
[1732119274544,19.18846197,236.47,236.31,33.82]
[1732119274844,2.72309582,236.46,236.31,3.38]
[1732119275037,16.46536615,236.43,236.24,4.6137]
[1732119275235,9.55757409,236.42,236.29,0.17005]
[1732119275445,6.17757409,236.41,236.29,0.17005]
[1732119275645,16.46536615,236.39,236.29,0.17005]
[1732119275939,2.1131,236.35,236.29,0.17005]
[1732119276243,6.17409425,236.34,236.29,0.17005]
[1732119276447,2.1133,236.32,236.29,0.17005]
[1732119276746,3.45447827,236.31,236.24,2.114]
[1732119276945,3.45447827,236.3,236.24,2.114]
[1732119277147,3.7847,236.38,236.24,2.114]
[1732119277148,3.45447827,236.29,236.24,2.114]
[1732119277446,3.7847,236.38,236.24,2.114]
[1732119277648,3.45180935,236.37,236.24,2.114]
[1732119277846,3.45104076,236.36,236.24,2.114]
[1732119278047,2.1133,236.33,236.25,2.1139]
[1732119278446,3.7847,236.38,236.23,3.38]
[1732119278447,3.4503141,236.32,236.23,3.38]
[1732119278646,3.7847,236.38,236.23,3.38]
[1732119278844,6.16885013,236.37,236.23,3.38]
[1732119279042,6.16885013,236.36,236.23,3.38]
[1732119279248,3.7847,236.38,236.23,3.38]
[1732119279249,3.45080821,236.35,236.23,3.38]
[1732119279543,3.45080821,236.34,236.23,3.38]
[1732119279749,3.45080821,236.33,236.23,3.38]
[1732119279941,3.45080821,236.32,236.23,3.38]
[1732119280147,3.44933041,236.31,236.23,3.38]
[1732119280441,3.7847,236.38,236.23,3.38]
[1732119280642,3.44908096,236.37,236.23,3.38]
[1732119280849,6.16572953,236.36,236.23,3.38]
[1732119281041,6.16555193,236.35,236.24,2.114]
[1732119281253,3.44908096,236.34,236.24,2.114]
[1732119281444,3.44908096,236.33,236.24,2.114]
[1732119281649,3.44908096,236.32,236.24,2.114]
[1732119281850,3.44908096,236.31,236.24,2.114]
[1732119282151,3.44908096,236.3,236.24,2.114]
[1732119282347,20.25006615,236.38,236.24,2.114]
[1732119282543,2.1132,236.33,236.24,2.114]
[1732119282847,3.44725271,236.32,236.25,2.1139]
[1732119283150,3.44725271,236.31,236.25,2.1139]
[1732119283349,2.1132,236.33,236.25,2.1139]
[1732119283647,2.1132,236.33,236.24,2.1139]
[1732119283648,3.44692681,236.32,236.24,2.1139]
[1732119283848,2.1132,236.33,236.24,2.1139]
[1732119283849,3.44692681,236.31,236.24,2.1139]
[1732119284049,2.1132,236.33,236.24,2.1139]
[1732119284241,3.44678816,236.32,236.24,2.1139]
[1732119284440,3.44678816,236.31,236.25,2.1139]
[1732119284643,2.1132,236.33,236.25,2.1139]
[1732119284846,3.44676274,236.32,236.25,2.1139]
[1732119285051,3.44676274,236.31,236.25,2.1139]
[1732119285346,2.1131,236.35,236.26,2.1138]
[1732119285651,3.44689372,236.34,236.23,16.46536615]
[1732119285850,3.44711037,236.33,236.23,16.46536615]
[1732119286049,3.7847,236.38,236.23,16.46536615]
[1732119286256,6.16203259,236.37,236.23,16.46536615]
[1732119286452,3.44701043,236.36,236.23,16.46536615]
[1732119286654,2.1129,236.36,236.28,2.1136]
[1732119286950,3.44701043,236.35,236.23,16.46536615]
[1732119287151,3.44701043,236.34,236.27,2.1137]
[1732119287349,3.44701043,236.33,236.27,2.1137]
[1732119287546,2.113,236.35,236.27,2.1137]
[1732119287747,3.44690363,236.34,236.27,2.1137]
[1732119287956,3.44690363,236.33,236.27,2.1137]
[1732119288150,2.113,236.35,236.27,2.1137]
[1732119288452,3.44679564,236.34,236.27,2.1137]
[1732119288653,3.44679564,236.33,236.27,2.1137]
[1732119288849,3.44749718,236.32,236.22,2.1142]
[1732119289058,3.44749718,236.31,236.22,2.1142]
[1732119289257,3.44749718,236.3,236.18,10.30349456]
[1732119289458,3.44749718,236.29,236.18,10.30349456]
[1732119289659,10.30349456,236.36,236.18,10.30349456]
[1732119289856,3.44714486,236.35,236.18,10.30349456]
[1732119290059,3.44714486,236.35,236.21,10.30349456]
[1732119290060,6.16226081,236.35,236.21,10.30349456]
[1732119290359,3.44714486,236.34,236.24,10.30349456]
[1732119290659,3.44714486,236.33,236.29,2.1135]
[1732119290852,3.44714486,236.32,236.25,3.34]
[1732119291054,3.7847,236.38,236.25,3.34]
[1732119291361,6.16281312,236.37,236.25,3.34]
[1732119291556,3.44744737,236.36,236.27,10.30349456]
[1732119291758,3.44744737,236.35,236.27,10.30349456]
[1732119292056,3.7847,236.38,236.27,10.30349456]
[1732119292259,3.4483623,236.37,236.27,10.30349456]
[1732119292458,3.4483623,236.36,236.27,10.30349456]
[1732119292659,1.2983,236.38,236.27,10.30349456]
[1732119293157,3.44857192,236.37,236.27,10.30349456]
[1732119293359,1.2983,236.38,236.32,2.1133]
[1732119293660,3.44842306,236.37,236.27,10.30349456]
[1732119293859,1.2983,236.38,236.27,10.30349456]
[1732119294062,3.44840819,236.37,236.3,10.30349456]
[1732119294260,2.4614,236.45,236.39,2.1126]
[1732119294559,3.44970474,236.44,236.36,13.64349456]
[1732119294763,3.44970474,236.43,236.37,3.34]
[1732119294963,0.15307,236.47,236.37,3.34]
[1732119295161,3.45039466,236.46,236.37,3.34]
[1732119295363,0.15307,236.47,236.37,3.34]
[1732119295669,3.45041246,236.46,236.37,3.34]
[1732119295869,0.15307,236.47,236.37,3.34]
[1732119296273,3.44973959,236.46,236.37,3.34]
[1732119296463,0.15307,236.47,236.37,3.34]
[1732119296668,3.45372351,236.45,236.37,3.34]
[1732119296868,0.15307,236.47,236.37,3.34]
[1732119296869,3.45372351,236.44,236.37,3.34]
[1732119297069,3.45372351,236.43,236.37,3.34]
[1732119297271,2.112,236.46,236.37,5.4528]
[1732119297473,3.45453682,236.45,236.37,5.4528]
[1732119297674,3.45453682,236.44,236.37,5.4528]
[1732119297874,3.45453682,236.45,236.37,5.4528]
[1732119298169,3.45453682,236.44,236.4,2.1125]
[1732119298475,0.15307,236.47,236.42,10.30349456]
[1732119298671,0.15307,236.47,236.46,2.112]
[1732119298871,0.15307,236.47,236.46,5.432]
[1732119299173,1.2944,236.59,236.46,3.32]
[1732119299369,3.45539709,236.58,236.48,10.30349456]
[1732119299675,3.45539709,236.57,236.48,10.30349456]
[1732119299871,3.45539709,236.56,236.5,2.1116]
[1732119300071,1.2944,236.59,236.49,3.32]
[1732119300277,3.45484323,236.58,236.49,3.32]
[1732119300466,3.45484323,236.57,236.51,10.30349456]
[1732119300773,12.69,236.75,236.55,16.44607186]
[1732119300774,1.2944,236.7,236.55,16.44607186]
[1732119300992,6.1773762,236.69,236.55,16.44607186]
[1732119301173,3.45555038,236.68,236.55,16.44607186]
[1732119301373,3.45555038,236.69,236.55,16.44607186]
[1732119301572,3.45555038,236.68,236.61,2.1107]
[1732119301778,3.45555038,236.69,236.61,5.4307]
[1732119302076,1.2944,236.7,236.61,3.32]
[1732119302077,3.45555038,236.68,236.61,3.32]
[1732119302274,3.45555038,236.67,236.61,5.4307]
[1732119302478,1.2944,236.7,236.61,5.4307]
[1732119302676,3.45054631,236.69,236.61,5.4307]
[1732119302978,3.45054631,236.68,236.61,3.32]
[1732119303183,3.4043,236.7,236.61,3.32]
[1732119303482,3.45012435,236.69,236.61,3.32]
[1732119303673,3.45012435,236.68,236.61,5.4307]
[1732119303875,1.2944,236.7,236.61,5.4307]
[1732119304082,3.44748545,236.69,236.61,5.4307]
[1732119304279,3.44748545,236.68,236.61,5.4307]
[1732119304575,3.44508956,236.67,236.52,3.32]
[1732119304779,16.44607186,236.63,236.45,1.2653]
[1732119304980,4.72758956,236.62,236.45,2.1121]
[1732119305281,4.72758956,236.62,236.45,3.32]
[1732119305282,3.44508956,236.61,236.45,3.32]
[1732119305475,3.44508956,236.6,236.45,3.32]
[1732119305779,6.15772941,236.59,236.45,3.32]
[1732119306076,3.44508956,236.58,236.45,3.32]
[1732119306279,1.2399,236.61,236.51,2.1115]
[1732119306475,2.1109,236.59,236.45,3.32]
[1732119306781,1.2399,236.61,236.45,3.32]
[1732119306782,3.44411722,236.58,236.45,3.32]
[1732119306984,3.44411722,236.57,236.42,30.42]
[1732119307178,3.44411722,236.57,236.4,2.1126]
[1732119307179,16.44607186,236.55,236.4,2.1126]
[1732119307379,1.2529,236.57,236.39,3.32]
[1732119307380,6.15619933,236.54,236.39,3.32]
[1732119307677,3.44351343,236.53,236.39,3.32]
[1732119307876,3.44373516,236.52,236.39,19.76607186]
[1732119308181,1.2529,236.57,236.39,19.76607186]
[1732119308182,2.1112,236.56,236.39,19.76607186]
[1732119308373,3.44346947,236.55,236.39,19.76607186]
[1732119308576,1.2529,236.57,236.39,19.76607186]
[1732119308577,2.1115,236.52,236.39,19.76607186]
[1732119308778,3.44346947,236.51,236.39,19.76607186]
[1732119308974,1.2529,236.57,236.39,19.76607186]
[1732119309178,6.15442482,236.56,236.39,3.32]
[1732119309377,22.60049668,236.55,236.39,3.32]
[1732119309581,6.15442482,236.54,236.39,3.32]
[1732119309781,16.44607186,236.55,236.4,2.1125]
[1732119309782,2.1118,236.49,236.4,2.1125]
[1732119310081,3.44270144,236.48,236.4,3.18]
[1732119310280,16.44607186,236.55,236.4,3.18]
[1732119310281,3.44270144,236.47,236.4,3.18]
[1732119310480,3.44270144,236.46,236.4,3.18]
[1732119310683,16.44607186,236.55,236.35,16.65849186]
[1732119310881,0.75864798,236.54,236.37,2.1128]
[1732119311079,16.44607186,236.51,236.35,0.21242]
[1732119311280,6.15914891,236.5,236.35,0.21242]
[1732119311484,2.1123,236.44,236.35,0.21242]
[1732119311678,3.44537907,236.43,236.35,0.21242]
[1732119311876,3.44537907,236.42,236.35,2.32542]
[1732119312084,1.2047,236.48,236.35,0.21242]
[1732119312286,3.44501449,236.47,236.35,0.21242]
[1732119312580,3.44501449,236.46,236.35,0.21242]
[1732119312780,3.44501449,236.45,236.35,0.21242]
[1732119312984,4.64321449,236.44,236.35,0.21242]
[1732119313183,2.1126,236.4,236.35,0.21242]
[1732119313685,2.1125,236.42,236.35,0.21242]
[1732119313886,3.44325182,236.41,236.35,0.21242]
[1732119314084,1.1982,236.44,236.35,0.21242]
[1732119314284,3.44261335,236.43,236.35,0.21242]
[1732119314481,3.44261335,236.42,236.35,0.21242]
[1732119314682,3.44261335,236.41,236.35,0.21242]
[1732119314883,1.1982,236.44,236.35,0.21242]
[1732119315186,3.44287316,236.43,236.35,0.21242]
[1732119315381,3.44287316,236.42,236.35,0.21242]
[1732119315586,3.44287316,236.41,236.35,0.21242]
[1732119315781,1.1982,236.44,236.35,0.21242]
[1732119315982,3.44220756,236.43,236.35,0.21242]
[1732119316190,1.1982,236.44,236.35,0.21242]
[1732119316191,3.44220756,236.42,236.35,0.21242]
[1732119316385,3.3105,236.44,236.35,2.32542]
[1732119316587,3.44275457,236.43,236.35,0.21242]
[1732119316781,3.44275457,236.42,236.35,0.21242]
[1732119316982,3.44275457,236.41,236.35,0.21242]
[1732119317186,3.44275457,236.4,236.35,0.21242]
[1732119317388,3.44275457,236.39,236.35,0.21242]
[1732119317586,3.44275457,236.38,236.2,19.62607186]
[1732119317794,3.44275457,236.37,236.2,19.62607186]
[1732119318092,3.44275457,236.36,236.2,19.62607186]
[1732119318295,3.44275457,236.35,236.2,19.62607186]
[1732119318484,3.44254056,236.34,236.25,2.1139]
[1732119318687,3.44418588,236.33,236.25,2.1139]
[1732119318889,1.2216,236.37,236.25,2.1139]
[1732119319095,3.44367559,236.36,236.25,2.1139]
[1732119319293,3.44367559,236.35,236.2,19.62607186]
[1732119319495,2.1132,236.33,236.26,2.1138]
[1732119319691,1.2216,236.37,236.2,19.62607186]
[1732119319992,16.44607186,236.35,236.2,2.1143]
[1732119320191,9.33481907,236.36,236.15,3.18]
[1732119320192,16.44607186,236.31,236.15,3.18]
[1732119320386,1.2403,236.3,236.15,3.18]
[1732119320791,3.3538,236.3,236.15,19.62607186]
[1732119321089,1.2403,236.3,236.19,16.44607186]
[1732119322994,1.2403,236.3,236.22,2.1142]
[1732119323190,1.2403,236.3,236.19,16.44607186]
[1732119323598,1.2403,236.3,236.15,19.62607186]
[1732119324398,1.2403,236.3,236.16,16.44607186]
[1732119324595,3.43930954,236.29,236.17,2.1146]
[1732119324795,3.43930954,236.28,236.17,2.1146]
[1732119324993,1.2403,236.3,236.16,16.44607186]
[1732119325191,1.2403,236.3,236.18,2.1145]
[1732119325192,2.1138,236.26,236.18,2.1145]
[1732119325393,1.287,236.36,236.16,16.44607186]
[1732119325596,6.14763985,236.35,236.16,16.44607186]
[1732119325904,6.14763985,236.34,236.16,16.44607186]
[1732119326096,19.04597186,236.36,236.16,16.44607186]
[1732119326097,6.14763985,236.33,236.16,16.44607186]
[1732119326297,2.1139,236.26,236.18,2.1145]
[1732119326501,16.44607186,236.32,236.11,1.3231]
[1732119326699,10.31516546,236.27,236.12,13.49516546]
[1732119326905,1.3237,236.26,236.12,13.49516546]
[1732119327103,3.43839162,236.25,235.99,30.42]
[1732119327300,14.98495708,236.24,236.09,10.31516546]
[1732119327500,2.1144,236.2,236.09,10.31516546]
[1732119327803,3.18,236.35,236.17,10.31516546]
[1732119327998,8.70104752,236.34,236.23,10.31516546]
[1732119328200,3.43802025,236.33,236.23,10.31516546]
[1732119328705,3.43802025,236.33,236.3,2.1135]
[1732119328902,2.5551,236.34,236.26,10.31516546]
[1732119328903,2.5551,236.34,236.26,13.49516546]
[1732119329403,3.43810089,236.33,236.26,3.18]
[1732119329606,3.4384374,236.32,236.26,3.18]
[1732119329807,2.5551,236.34,236.26,3.18]
[1732119330003,1.3129,236.36,236.26,3.18]
[1732119330200,3.43893255,236.35,236.26,3.18]
[1732119330406,3.43893255,236.34,236.28,2.1136]
[1732119330605,1.3129,236.36,236.28,2.1136]
[1732119330808,3.43916063,236.35,236.26,3.18]
[1732119330998,2.1131,236.34,236.27,2.1137]
[1732119331800,2.1131,236.34,236.26,3.18]
[1732119331999,5.55231459,236.33,236.26,3.18]
[1732119332299,3.43901459,236.32,236.24,3.18]
[1732119332503,1.3129,236.36,236.24,3.18]
[1732119332698,3.43828506,236.35,236.24,3.18]
[1732119332903,3.43828506,236.34,236.24,3.18]
[1732119333099,2.1133,236.32,236.24,5.2939]
[1732119333504,10.31516546,236.31,236.17,1.2404]
[1732119333702,2.1137,236.28,236.19,2.1144]
[1732119333903,10.31516546,236.31,236.19,2.1144]
[1732119334101,3.43816469,236.3,236.19,2.1144]
[1732119334303,3.43816469,236.29,236.19,2.1144]
[1732119334504,10.31516546,236.31,236.19,2.1144]
[1732119334707,3.4381611,236.3,236.21,2.1143]
[1732119334909,3.4381611,236.29,236.21,2.1143]
[1732119335100,10.31516546,236.34,236.2,10.31516546]
[1732119335407,3.43902196,236.33,236.2,10.31516546]
[1732119335606,3.43902196,236.32,236.2,10.31516546]
[1732119335903,10.31516546,236.34,236.2,10.31516546]
[1732119335904,3.43926586,236.31,236.2,10.31516546]
[1732119336110,10.31516546,236.34,236.2,10.31516546]
[1732119336310,3.43926769,236.33,236.18,3.18]
[1732119336510,3.43926769,236.32,236.2,10.31516546]
[1732119336810,2.1136,236.29,236.23,2.1141]
[1732119337111,10.31516546,236.34,236.2,10.31516546]
[1732119337304,3.43862824,236.33,236.18,3.18]
[1732119337609,10.31516546,236.34,236.18,3.18]
[1732119337610,3.43862824,236.32,236.18,3.18]
[1732119337810,3.43862824,236.31,236.18,3.18]
[1732119338011,3.43862824,236.3,236.18,3.18]
[1732119338210,10.31516546,236.34,236.2,2.1144]
[1732119338412,3.43645365,236.33,236.18,3.18]
[1732119338711,10.31516546,236.31,236.18,3.18]
[1732119338905,3.43645365,236.3,236.15,10.31516546]
[1732119339211,10.31516546,236.28,236.15,3.24]
[1732119339406,2.5347,236.27,236.15,3.24]
[1732119339911,2.5347,236.27,236.07,6.90294334]
[1732119339912,10.31516546,236.25,236.07,6.90294334]
[1732119340111,10.31516546,236.22,236.06,3.24]
[1732119340308,10.31516546,236.22,236.07,10.31516546]
[1732119341016,2.1147,236.17,236.09,2.1153]
[1732119341311,10.31516546,236.22,236.04,5.64904334]
[1732119341507,2.115,236.14,236.05,12.43086546]
[1732119341710,10.31516546,236.19,236.05,10.31516546]
[1732119342111,10.31516546,236.19,236.05,12.43086546]
[1732119342313,10.31516546,236.19,236.05,10.31516546]
[1732119342711,2.1148,236.15,236.06,2.1156]
[1732119342915,10.31516546,236.19,236.05,10.31516546]
[1732119343316,10.31516546,236.22,236.08,10.31516546]
[1732119344617,2.1146,236.18,236.11,2.1151]
[1732119345113,10.31516546,236.22,236.11,2.1151]
[1732119345318,2.1147,236.17,236.1,2.1153]
[1732119346415,10.31516546,236.22,236.1,2.1153]
[1732119346617,10.31516546,236.19,236.05,2.1157]
[1732119346914,10.31516546,236.16,236.02,10.31516546]
[1732119347115,4.64189241,236.15,236.02,10.31516546]
[1732119347307,3.42699241,236.14,236.02,10.31516546]
[1732119347512,3.42699241,236.13,236.01,3.26]
[1732119347712,1.2149,236.15,235.99,10.31516546]
[1732119347713,2.1155,236.08,235.99,10.31516546]
[1732119347913,3.43101336,236.07,235.99,10.31516546]
[1732119348111,3.43101336,236.07,235.88,2.13892961]
[1732119348112,2.1158,236.04,235.24,169.4713004]
[1732119348317,10.31516546,236.06,235.85,2.8433]
[1732119348517,3.26,236.1,235.9,2.117]
[1732119348518,10.31516546,236.03,235.9,2.117]
[1732119348720,3.42984964,236.02,235.89,10.31516546]
[1732119348916,10.31516546,236.03,235.9,3.26]
[1732119348917,3.42984964,236.01,235.9,3.26]
[1732119349117,3.42984964,236.0,235.91,3.26]
[1732119349320,3.42984964,235.99,235.91,3.26]
[1732119349521,3.42984964,235.98,235.91,3.26]
[1732119349718,3.42984964,235.97,235.91,3.26]
[1732119349916,10.31516546,236.03,235.85,2.4579]
[1732119350119,10.31516546,236.0,235.89,3.26]
[1732119350320,3.43229219,235.99,235.89,3.26]
[1732119350616,3.43229219,235.98,235.89,3.26]
[1732119350820,3.43229219,235.97,235.85,1.2279]
[1732119351022,2.1168,235.94,235.83,2.1177]
[1732119351218,3.42984554,235.93,235.84,3.26]
[1732119351420,3.42984554,235.92,235.84,3.26]
[1732119351620,3.42984554,235.91,235.84,3.26]
[1732119351923,2.1167,235.94,235.85,2.1175]
[1732119352125,3.42968139,235.93,235.85,2.1175]
[1732119352323,3.42968139,235.92,235.84,19.80398345]
[1732119352523,1.2153,236.02,235.84,19.80398345]
[1732119352826,6.12781458,236.01,235.84,19.80398345]
[1732119353026,6.12781458,236.0,235.84,19.80398345]
[1732119353321,2.1164,235.97,235.87,2.1173]
[1732119353625,3.42798333,235.96,235.84,19.80398345]
[1732119353825,2.1167,235.94,235.85,2.1175]
[1732119354020,3.42798333,235.93,235.85,2.1175]
[1732119354326,2.1166,235.96,235.85,2.1175]
[1732119354627,3.42751025,235.95,235.84,19.80398345]
[1732119354825,3.42751025,235.94,235.84,19.80398345]
[1732119355025,3.42751025,235.93,235.87,2.1173]
[1732119355224,2.1164,235.97,235.87,2.1173]
[1732119355427,3.42468421,235.96,235.84,19.80398345]
[1732119355625,3.42468421,235.95,235.88,2.1172]
[1732119355926,3.42468421,235.94,235.84,19.80398345]
[1732119356120,17.79818345,236.04,235.88,16.54398345]
[1732119356326,5.54086249,236.03,235.88,16.54398345]
[1732119356525,3.42486249,236.02,235.89,1.2704]
[1732119356827,3.42486249,236.01,235.94,2.1167]
[1732119357021,3.42486249,236.0,235.95,3.26]
[1732119357227,16.54398345,236.12,235.92,16.54398345]
[1732119357429,1.327,236.11,235.93,3.26]
[1732119357627,3.42494471,236.1,235.93,3.26]
[1732119357829,6.12176932,236.09,235.93,3.26]
[1732119358129,2.1158,236.04,235.93,3.26]
[1732119358323,3.42494471,236.03,235.96,2.1165]
[1732119358526,3.42494471,236.02,235.97,3.26]
[1732119358830,3.42494471,236.02,235.89,2.4922]
[1732119358831,3.42494471,236.01,235.93,3.26]
[1732119359129,3.42494471,236.0,235.93,3.26]
[1732119359325,3.42494471,235.99,235.93,3.26]
[1732119359522,2.116,236.02,235.93,3.26]
[1732119359523,3.42494471,235.98,235.94,2.1167]
[1732119359727,2.116,236.02,235.93,3.26]
[1732119359728,3.42494471,235.97,235.93,3.26]
[1732119359929,16.54398345,236.08,235.93,3.26]
[1732119359930,3.42494471,235.96,235.93,3.26]
[1732119360132,3.42494471,235.95,235.93,3.26]
[1732119360331,1.327,236.11,235.93,3.26]
[1732119360531,6.1213025,236.1,235.96,16.54398345]
[1732119360727,2.69696266,236.1,235.96,3.26]
[1732119360928,16.54398345,236.08,235.89,2.4922]
[1732119361133,16.54398345,236.08,235.9,3.26]
[1732119361334,2.1165,235.97,235.9,3.26]
[1732119361634,16.54398345,236.08,235.9,3.26]
[1732119361834,2.1164,235.98,235.9,5.377]
[1732119362032,16.54398345,236.08,235.88,16.54398345]
[1732119362334,2.1162,236.0,235.89,5.3771]
[1732119362535,3.42462369,235.99,235.89,3.26]
[1732119362732,3.42462369,235.98,235.89,3.26]
[1732119363032,3.42462369,235.97,235.89,3.26]
[1732119363241,3.42462369,235.96,235.89,3.26]
[1732119363537,1.327,236.11,235.92,16.54398345]
[1732119363538,1.2463,236.1,235.92,16.54398345]
[1732119363731,3.42286534,236.09,235.93,3.26]
[1732119363935,2.1157,236.06,235.96,2.1164]
[1732119364232,3.42286534,236.05,235.92,16.54398345]
[1732119364439,2.116,236.02,235.94,2.1166]
[1732119364741,3.42286534,236.01,235.95,3.26]
[1732119364940,3.42286534,236.0,235.95,3.26]
[1732119365139,3.42286534,235.99,235.95,3.26]
[1732119365339,3.42286534,235.98,235.95,3.26]
[1732119365539,1.2463,236.1,235.95,3.26]
[1732119365832,6.1198822,236.09,235.95,3.26]
[1732119366037,22.66386565,236.08,235.91,3.26]
[1732119366232,6.1198822,236.07,235.91,3.26]
[1732119366435,16.54398345,236.04,235.84,16.54398345]
[1732119366637,4.64558189,236.03,235.85,3.26]
[1732119366837,3.42348189,236.02,235.84,16.54398345]
[1732119367038,2.1168,235.93,235.85,3.34]
[1732119367341,3.42348189,235.92,235.85,3.34]
[1732119367537,3.42348189,235.91,235.85,3.34]
[1732119367743,17.85858345,236.0,235.8,16.54398345]
[1732119367944,4.634281,235.99,235.85,3.34]
[1732119368144,3.419081,235.98,235.85,3.34]
[1732119368443,1.2152,235.99,235.85,3.34]
[1732119368444,3.419081,235.97,235.85,3.34]
[1732119368635,3.419081,235.96,235.8,16.54398345]
[1732119368841,3.419081,235.95,235.82,2.1177]
[1732119369035,3.419081,235.94,235.82,2.1177]
[1732119369339,1.2152,235.99,235.42,2.1213]
[1732119369340,12.69,235.82,235.42,2.1213]
[1732119369646,7.166981,235.81,235.46,16.54398345]
[1732119369841,16.54398345,235.76,235.51,16.54398345]
[1732119370343,16.54398345,235.64,235.25,30.48]
[1732119370551,3.40936438,235.63,235.48,16.54398345]
[1732119370851,26.90650974,235.79,235.49,6.7475]
[1732119370852,16.54398345,235.75,235.49,6.7475]
[1732119371047,3.40143276,235.74,235.53,16.54398345]
[1732119371240,26.90650974,235.79,235.54,4.2]
[1732119371241,3.40143276,235.73,235.54,4.2]
[1732119371442,3.40143276,235.72,235.54,4.2]
[1732119371637,3.40143276,235.71,235.54,4.2]
[1732119371844,3.40143276,235.7,235.54,4.2]
[1732119372145,16.54398345,235.75,235.58,2.1199]
[1732119372146,2.1187,235.73,235.58,2.1199]
[1732119372346,3.39276222,235.72,235.58,2.1199]
[1732119372540,3.39276222,235.71,235.58,2.1199]
[1732119372746,43.45049319,235.79,235.56,16.54398345]
[1732119373041,3.39305065,235.78,235.56,16.54398345]
[1732119373248,3.39305065,235.77,235.56,16.54398345]
[1732119373440,3.39305065,235.78,235.57,4.2]
[1732119373643,3.39305065,235.77,235.57,4.2]
[1732119373844,3.39305065,235.76,235.56,16.54398345]
[1732119374139,3.39305065,235.75,235.6,2.1197]
[1732119374340,3.39305065,235.74,235.57,4.2]
[1732119374540,43.45049319,235.79,235.57,4.2]
[1732119374750,3.38808303,235.78,235.57,4.2]
[1732119374941,3.38808303,235.77,235.57,4.2]
[1732119375144,3.38808303,235.76,235.57,4.2]
[1732119375349,3.38808303,235.75,235.6,16.54398345]
[1732119375549,43.45049319,235.79,235.6,16.54398345]
[1732119375746,3.3871512,235.78,235.6,16.54398345]
[1732119375949,3.3871512,235.77,235.6,16.54398345]
[1732119376147,3.3871512,235.76,235.6,18.650367]
[1732119376347,43.45049319,235.79,235.61,2.4303]
[1732119376548,3.38727652,235.78,235.66,2.1191]
[1732119376750,3.38727652,235.77,235.67,4.2]
[1732119376950,3.38727652,235.76,235.67,4.2]
[1732119377149,43.45049319,235.79,235.67,4.2]
[1732119377349,3.38896679,235.78,235.67,4.2]
[1732119377651,3.38896679,235.77,235.67,4.2]
[1732119377845,16.54398345,235.75,235.67,4.2]
[1732119378046,3.38769265,235.74,235.56,16.54398345]
[1732119378250,3.38769265,235.73,235.57,4.2]
[1732119378552,3.38769265,235.72,235.57,4.2]
[1732119378752,3.38769265,235.71,235.6,2.1197]
[1732119379050,2.1185,235.74,235.6,2.1197]
[1732119379249,3.38560864,235.73,235.62,2.1195]
[1732119379455,26.90650974,235.79,235.57,4.2]
[1732119379654,16.54398345,235.76,235.57,4.2]
[1732119379855,3.38521172,235.75,235.57,4.2]
[1732119380057,16.54398345,235.84,235.64,16.54398345]
[1732119380356,3.38579637,235.8,235.72,2.1187]
[1732119380552,18.66128345,235.88,235.73,4.2]
[1732119380857,3.38755861,235.87,235.75,2.1183]
[1732119381051,3.38755861,235.87,235.73,4.2]
[1732119381252,1.2849,235.97,235.76,16.54398345]
[1732119381451,1.2422,235.96,235.83,2.1176]
[1732119381654,1.2422,235.96,235.84,4.2]
[1732119382247,1.2422,235.96,235.78,1.2097]
[1732119382248,1.2422,235.96,235.77,1.3153]
[1732119382449,16.54398345,235.88,235.72,4.2]
[1732119382648,3.39240926,235.87,235.72,4.2]
[1732119383260,2.1179,235.81,235.66,4.2]
[1732119383457,3.39240926,235.8,235.66,4.2]
[1732119384058,3.39240926,235.8,235.67,4.2]